Cogmind - Beta 12 @@@ ROGUE MODE // 2023.04.21 @ 12:13:04 Player: wchar_t Result: Destroyed by G-73 Enforcer with Phase Gun Performance ------------- Evolutions (8) 4000 Regions Visited (15) 3000 Robots Destroyed (35) 175 Value Destroyed (1292) 1292 Prototype IDs (33) 660 Alien Tech Used (0) 0 Bonus (2721) 2721 TOTAL SCORE: 11848 Bonus ------- Pacifist 270 Triggered Max Security 1000 High Alert Combat Kills 651 Entered DSFs 500 Aligned with FarCom 300 Cogmind --------- Core Integrity 0/1450 Matter 211/300 Energy 14/100 System Corruption 13% Temperature Cool (0) Movement Core (50) Location -2/Research Parts ------- > --- POWER (2) -------- (None) > --- PROPULSION (8) --- (None) > --- UTILITY (11) ----- (None) > --- WEAPON (2) ------- (None) > --- INVENTORY (5) ---- Experimental Energy Well (600) Warp Gun Improved Potential Cannon Longsword +1 Peak State ------------ > --- POWER ------------ Micro Antimatter Reactor > --- PROPULSION ------- Xenon Bombardment Thruster Xenon Bombardment Thruster Field Propulsion Array Impulse Thruster Array Impulse Thruster Array > --- UTILITY ---------- Medium Storage Unit Experimental Energy Well Enhanced Optical Array Advanced Signal Interpreter Improved Terrain Scanner Precision Energy Filter Advanced ECM Suite Improved Core Shielding Hacking Suite Hacking Suite System Shield > --- WEAPON ----------- Improved Potential Cannon > --- INVENTORY -------- Quantum Reactor Quantum Reactor Advanced Energy Well Advanced Signal Interpreter Warp Gun Micro-nuke Launcher Longsword +1 [Rating: 141] Favorites ----------- Power Antimatter Reactor Engine Improved Ion Engine Power Core Light Nuclear Core Reactor Antimatter Reactor Propulsion Xenon Bombardment Thruster Hover Unit Aerolev Unit Flight Unit Xenon Bombardment Thruster Utility Hacking Suite Device Improved Terrain Scanner Storage Medium Storage Unit Processor Signal Interpreter Hackware Hacking Suite Protection Core Shielding Weapon Ripper Energy Gun Warp Gun Energy Cannon Improved Potential Cannon Launcher Rocket Launcher Slashing Weapon Ripper Build | -11 -10 -10 -10 -9 -8 -7 -6 -6 -5 -5 -5 -4 -3 -3 -2 ------- Run | Jun Mat Min Exi Min Mat Fac Fac DSF Fac Was Fac Fac Res Tes Res Slots Evolved 16 | . . . . . 4 2 2 . 2 . . 2 2 . 2 Power 1 | . . . . . . . . . . . . . . . 1 Propulsion 6 | . . . . . 2 1 . . 1 . . 1 1 . . Utility 9 | . . . . . 2 1 2 . 1 . . 1 1 . 1 Weapon . | . . . . . . . . . . . . . . . . Parts Attached 124 | . 2 . . . 5 10 4 10 7 . 5 21 12 10 38 Power 7 | . . . . . 1 . . . 1 . . 2 . . 3 Engine 2 | . . . . . 1 . . . 1 . . . . . . Core 1 | . . . . . . . . . . . . 1 . . . Reactor 4 | . . . . . . . . . . . . 1 . . 3 Propulsion 37 | . . . . . 1 2 1 9 4 . . 8 2 3 7 Treads . | . . . . . . . . . . . . . . . . Leg . | . . . . . . . . . . . . . . . . Wheel . | . . . . . . . . . . . . . . . . Hover 3 | . . . . . . 1 . 2 . . . . . . . Flight 34 | . . . . . 1 1 1 7 4 . . 8 2 3 7 Utility 27 | . 2 . . . 1 5 1 1 . . 2 4 4 . 7 Device 6 | . . . . . . . 1 . . . 1 2 . . 2 Storage 5 | . . . . . . . . . . . . . 1 . 4 Processor 6 | . 1 . . . . 2 . . . . 1 . 1 . 1 Hackware 3 | . . . . . . 1 . . . . . 1 1 . . Protection 7 | . 1 . . . 1 2 . 1 . . . 1 1 . . Artifact . | . . . . . . . . . . . . . . . . Weapon 53 | . . . . . 2 3 2 . 2 . 3 7 6 7 21 Energy Gun 4 | . . . . . . . . . . . . . . 2 2 Energy Cannon 3 | . . . . . . . . . . . . . . 1 2 Ballistic Gun . | . . . . . . . . . . . . . . . . Ballistic Cannon . | . . . . . . . . . . . . . . . . Launcher 12 | . . . . . . 1 . . . . 2 2 1 . 6 Special Weapon . | . . . . . . . . . . . . . . . . Impact Weapon . | . . . . . . . . . . . . . . . . Slashing Weapon 34 | . . . . . 2 2 2 . 2 . 1 5 5 4 11 Piercing Weapon . | . . . . . . . . . . . . . . . . Special Melee Weapon . | . . . . . . . . . . . . . . . . Unidentified Prototypes 9 | . . . . . . 1 . . . . . 1 . 4 3 Parts Lost 38 | . . . . . . 1 . 4 . . 4 8 . 4 17 Power 1 | . . . . . . . . . . . . . . . 1 Propulsion 27 | . . . . . . 1 . 3 . . 2 7 . 4 10 Utility 9 | . . . . . . . . 1 . . 1 1 . . 6 Weapon 1 | . . . . . . . . . . . 1 . . . . Highest Loss Streak 8 | . . . . . . 1 . 2 . . 4 5 . 4 8 To Critical Strikes . | . . . . . . . . . . . . . . . . Average Slot Usage (%) 56 | . 7 28 28 28 27 45 61 61 69 82 85 70 78 78 54 Reactor 1 | . . . . . . . . . . . . 2 4 4 3 Flight 13 | . . . . . 3 2 7 10 26 35 32 21 25 25 11 Device 6 | . . . . . . . 5 6 5 5 7 12 9 9 9 Storage 1 | . . . . . . . . . . . . . . 4 3 Processor 12 | . 5 14 14 14 9 19 20 14 11 11 16 15 17 9 7 Hackware 7 | . . . . . . . 6 6 5 5 5 8 10 14 11 Protection 8 | . 1 14 14 14 13 15 6 12 11 11 10 5 9 9 3 Slashing Weapon 1 | . . . . . 2 2 6 6 5 5 3 . . . 1 Naked Turns 71 | . 52 . . . . . . . . . . . . . 19 Heaviest Build 53 | . 1 1 1 1 4 5 5 6 13 13 15 26 34 37 53 Greatest Support 62 | 3 3 3 3 3 5 8 11 20 24 24 24 39 57 57 62 Greatest Overweight (x) 1 | . . . . . 1 . . 1 . . . . . . 1 Average Overweight (x) . | . . . . . . . . . . . . . . . . Largest Inventory Capacity 10 | 5 5 5 5 5 5 5 5 5 5 5 5 5 10 10 10 Average Capacity 6 | 5 5 5 5 5 5 5 5 5 5 5 5 5 5 10 9 Most Carried 10 | . 3 4 5 5 5 5 5 5 5 5 5 5 5 10 10 Average Carried 6 | . . 3 4 5 4 4 5 4 5 5 4 4 4 8 8 Final Capacity 10 | 5 5 5 5 5 5 5 5 5 5 5 5 5 10 10 5 Final Carried 10 | . 3 4 5 5 5 5 5 5 5 5 5 4 5 10 5 Class Distribution -------------------- 38% | Hacker-Scout 26% | Scout 21% | Mutant 7% | Hacker-Ninja 3% | Hacker-Mutant Dominant Class ---------------- Mutant | -10/Materials Mutant | -10/Mines Mutant | -10/Exiles Mutant | -9/Mines Mutant | -8/Materials Scout | -7/Factory Scout | -6/Factory Assassin | -6/DSF Scout | -5/Factory Scout | -5/Waste Scout | -5/Factory Hacker-Scout | -4/Factory Hacker-Scout | -3/Research Hacker-Scout | -3/Testing Hacker-Scout | -2/Research Resources | -11 -10 -10 -10 -9 -8 -7 -6 -6 -5 -5 -5 -4 -3 -3 -2 ----------- Run | Jun Mat Min Exi Min Mat Fac Fac DSF Fac Was Fac Fac Res Tes Res Matter Collected 1416 | 200 10 . . . 11 . . 4 339 . 10 238 150 42 412 Remotely . | . . . . . . . . . . . . . . . . Salvage Created 1185 | . . . . . 11 17 . . 285 . 16 218 160 42 436 Parts 60 | . . . . . 2 1 . . 7 . 1 14 10 4 21 Haulers Intercepted 2 | . . . . . . . . . . . . 1 . . 1 Recyclers Shooed 1 | . . . . . . . . . . . . . 1 . . Parts Field Recycled . | . . . . . . . . . . . . . . . . Retrieved Matter . | . . . . . . . . . . . . . . . . Parts Self-Destructed . | . . . . . . . . . . . . . . . . Prevented . | . . . . . . . . . . . . . . . . Kills | -11 -10 -10 -10 -9 -8 -7 -6 -6 -5 -5 -5 -4 -3 -3 -2 ------- Run | Jun Mat Min Exi Min Mat Fac Fac DSF Fac Was Fac Fac Res Tes Res Combat Hostiles Destroyed 25 | . . . . . . 1 . . . . 1 10 . . 13 Guns 2 | . . . . . . . . . . . . . . . 2 AOE 22 | . . . . . . 1 . . . . 1 10 . . 10 Classes Destroyed 10 | . . . . . 1 1 . . 2 . . 1 2 1 2 Worker 1 | . . . . . . . . . 1 . . . . . . Tunneler 1 | . . . . . . . . . . . . . 1 . . Hauler 2 | . . . . . . . . . . . . 1 . . 1 Recycler 3 | . . . . . . . . . 2 . . . 1 . . Operator 1 | . . . . . 1 . . . . . . . . . . Watcher 1 | . . . . . . . . . . . . . 1 . . Swarmer 19 | . . . . . . 1 . . . . 1 10 . . 7 Cutter 2 | . . . . . . . . . . . . . . . 2 Researcher 1 | . . . . . . . . . . . . . . 1 . Programmer 4 | . . . . . . . . . . . . . . . 4 Best Kill Streak 6 | . . . . . 1 1 . . 1 . 1 6 2 1 5 Combat Bots Only 5 | . . . . . . 1 . . . . 1 5 . . 5 Max Kills in Single Turn 3 | . . . . . 1 1 . . 1 . 1 3 1 1 3 Gunslinging . | . . . . . . . . . . . . . . . . Exploded 3 | . . . . . . 1 . . . . 1 3 . . 3 Melee . | . . . . . . . . . . . . . . . . Uniques/NPCs Destroyed . | . . . . . . . . . . . . . . . . Combat | -11 -10 -10 -10 -9 -8 -7 -6 -6 -5 -5 -5 -4 -3 -3 -2 -------- Run | Jun Mat Min Exi Min Mat Fac Fac DSF Fac Was Fac Fac Res Tes Res Damage Taken 5264 | . 71 25 . 84 186 134 . 423 . . 269 383 39 807 2843 Core 2403 | . 71 21 . 68 139 76 . 198 . . 80 37 14 242 1457 Absorbed by Shields 50 | . . . . . . . . . . . 50 . . . . Redirected to Shielding 343 | . . 4 . 16 30 17 . 33 . . 17 7 3 113 103 Core Remaining (%) 80 | 100 . . . 36 74 89 . 76 . . 92 96 . 80 . Volleys Fired 28 | . . . . . . 1 . . . . 3 5 . 1 18 Largest 1 | . . . . . . 1 . . . . 1 1 . 1 1 Hottest 200 | . . . . . . 33 . . . . 33 33 . 90 200 Shots Fired 27 | . . . . . . 1 . . . . 3 5 . 1 17 Gun 6 | . . . . . . . . . . . . . . 1 5 Cannon 5 | . . . . . . . . . . . . . . . 5 Launcher 16 | . . . . . . 1 . . . . 3 5 . . 7 Special . | . . . . . . . . . . . . . . . . Kinetic . | . . . . . . . . . . . . . . . . Thermal 11 | . . . . . . . . . . . . . . 1 10 Explosive 16 | . . . . . . 1 . . . . 3 5 . . 7 Electromagnetic . | . . . . . . . . . . . . . . . . Robot Hit Streak 4 | . . . . . . 1 . . . . 1 2 . . 4 Robot Miss Streak 2 | . . . . . . . . . . . 2 1 . . 2 Penetration Max . | . . . . . . . . . . . . . . . . Secondary Targets . | . . . . . . . . . . . . . . . . Shots Hit Robots 34 | . . . . . 1 2 . . 5 . 1 2 6 1 16 Core Hits 43 | . . . . . . 4 . . 2 . 2 16 2 1 16 Critical Kills 1 | . . . . . . . . . . . . . . . 1 Critical Parts Destroyed . | . . . . . . . . . . . . . . . . Critical Strikes 1 | . . . . . . . . . . . . . . . 1 Meltdown 1 | . . . . . . . . . . . . . . . 1 Melee Attacks 73 | . . . . . 2 3 3 . 9 . 1 5 10 6 34 Impact . | . . . . . . . . . . . . . . . . Slashing 73 | . . . . . 2 3 3 . 9 . 1 5 10 6 34 Piercing . | . . . . . . . . . . . . . . . . Sneak Attacks 10 | . . . . . 1 1 . . 4 . . . 2 1 1 Combat Hostiles . | . . . . . . . . . . . . . . . . Follow-up Attacks . | . . . . . . . . . . . . . . . . Damage Inflicted 4641 | . . . . . 67 152 . . 334 . 129 839 412 97 2611 Guns 131 | . . . . . . . . . . . . . . . 131 Cannons 613 | . . . . . . . . . . . . . . . 613 Explosions 2586 | . . . . . . 84 . . . . 129 839 . . 1534 Melee 1299 | . . . . . 67 56 . . 334 . . . 412 97 333 Ramming 12 | . . . . . . 12 . . . . . . . . . Kinetic . | . . . . . . . . . . . . . . . . Thermal 1211 | . . . . . . . . . . . . . . . 1211 Explosive 2119 | . . . . . . 84 . . . . 129 839 . . 1067 Electromagnetic . | . . . . . . . . . . . . . . . . Impact . | . . . . . . . . . . . . . . . . Slashing 1299 | . . . . . 67 56 . . 334 . . . 412 97 333 Piercing . | . . . . . . . . . . . . . . . . Highest Corruption 13 | . . . . . . 2 . . . . . 3 . 6 13 Average Corruption 3 | . . . . . . 2 . . . . . 3 . 4 7 Corruption Purged . | . . . . . . . . . . . . . . . . Corruption Blocked . | . . . . . . . . . . . . . . . . Effects 12 | . . . . . . 4 . . . . . 2 . 2 4 Message Errors 7 | . . . . . . 3 . . . . . 1 . 2 1 Matter Fused 1 | . . . . . . 1 . . . . . . . . . Heat Flow Errors 2 | . . . . . . . . . . . . . . . 2 Energy Discharges 1 | . . . . . . . . . . . . 1 . . . Weapon Failures 1 | . . . . . . . . . . . . . . . 1 Overload Shots . | . . . . . . . . . . . . . . . . Overflow Damage 901 | . . . . . 37 . . . 119 . . 32 83 . 630 Projectiles 393 | . . . . . . . . . . . . . . . 393 Explosions 269 | . . . . . . . . . . . . 32 . . 237 Melee 239 | . . . . . 37 . . . 119 . . . 83 . . Knockbacks . | . . . . . . . . . . . . . . . . Impact . | . . . . . . . . . . . . . . . . Kinetic . | . . . . . . . . . . . . . . . . Secondary . | . . . . . . . . . . . . . . . . Self-Inflicted Damage 140 | . . . . . . 6 . . . . 40 . . . 94 Shots 3 | . . . . . . . . . . . 1 . . . 2 Rammed 2 | . . . . . . 2 . . . . . . . . . Targets Rammed 2 | . . . . . . 2 . . . . . . . . . Kicked . | . . . . . . . . . . . . . . . . Crushed . | . . . . . . . . . . . . . . . . Highest Temperature 599 | . . . . . . . . . . . . 2 51 44 599 Average Temperature 67 | . . . . . . . . . . . . 2 16 10 179 Received Heat Transfer 678 | . 39 . . 48 63 6 . 18 . . 54 45 12 159 234 Effects 6 | . . . . . . . . . . . . . . . 6 Shutdowns 2 | . . . . . . . . . . . . . . . 2 Energy Bleed 1 | . . . . . . . . . . . . . . . 1 Interference 1 | . . . . . . . . . . . . . . . 1 Matter Decay 1 | . . . . . . . . . . . . . . . 1 Damage (minor) 1 | . . . . . . . . . . . . . . . 1 Siege Activations . | . . . . . . . . . . . . . . . . Robots Corrupted . | . . . . . . . . . . . . . . . . Combat Hostiles . | . . . . . . . . . . . . . . . . Parts Fried . | . . . . . . . . . . . . . . . . Impact Corruptions . | . . . . . . . . . . . . . . . . Robots Melted 1 | . . . . . . . . . . . . . . . 1 Combat Hostiles 1 | . . . . . . . . . . . . . . . 1 Parts Melted 3 | . . . . . . . . . . . . . . . 3 Heat Transferred 655 | . . . . . . . . . . . . . . . 655 Parts Sabotaged . | . . . . . . . . . . . . . . . . Parts Stolen . | . . . . . . . . . . . . . . . . Parts Stripped . | . . . . . . . . . . . . . . . . Power Chain Reactions . | . . . . . . . . . . . . . . . . Missiles Intercepted . | . . . . . . . . . . . . . . . . Alert | -11 -10 -10 -10 -9 -8 -7 -6 -6 -5 -5 -5 -4 -3 -3 -2 ------- Run | Jun Mat Min Exi Min Mat Fac Fac DSF Fac Was Fac Fac Res Tes Res Peak Influence 1911 | . 67 25 . 15 71 212 106 74 48 31 130 467 319 1804 1911 Initial 1100 | . . 25 . . 5 32 103 74 25 16 21 63 204 179 1100 Average 654 | . 22 25 . 14 51 140 103 63 35 22 68 324 254 1672 1498 Maximum Alert Level 5 | . . . . . . 1 . . . . . 2 1 5 5 Low Security (%) 42 | 100 100 100 . 100 100 72 100 100 100 100 100 19 . . . Level 1 17 | . . . . . . 27 . . . . . 44 100 . . Level 2 3 | . . . . . . . . . . . . 35 . . . Level 3 1 | . . . . . . . . . . . . . . . 3 Level 4 15 | . . . . . . . . . . . . . . . 47 Level 5 15 | . . . . . . . . . . . . . . . 48 High Security . | . . . . . . . . . . . . . . . . Max Security 4 | . . . . . . . . . . . . . . 99 . Squads Dispatched 25 | . . . . . 2 1 . 1 1 . 1 2 . 6 11 Investigation 4 | . . . . . 1 1 . . 1 . . . . . 1 Extermination 2 | . . . . . . . . . . . . . . . 2 Reinforcement 8 | . . . . . 1 . . 1 . . . 1 . . 5 Assault 10 | . . . . . . . . . . . . 1 . 6 3 Garrison 1 | . . . . . . . . . . . 1 . . . . Intercept . | . . . . . . . . . . . . . . . . Searches Triggered . | . . . . . . . . . . . . . . . . Construction Impeded 1 | . . . . . . . . . . . . . . . 1 Haulers Reinforced 2 | . . . . . . . . . . . . 1 . . 1 Active Scanning Responses . | . . . . . . . . . . . . . . . . Cargo Convoy Interrupts . | . . . . . . . . . . . . . . . . Stealth | -11 -10 -10 -10 -9 -8 -7 -6 -6 -5 -5 -5 -4 -3 -3 -2 --------- Run | Jun Mat Min Exi Min Mat Fac Fac DSF Fac Was Fac Fac Res Tes Res Distress Signals 12 | . 2 . . . 1 . . . . . . 4 2 1 2 Communications Jammed . | . . . . . . . . . . . . . . . . Distress Signals . | . . . . . . . . . . . . . . . . Times Spotted 169 | . 6 3 . 3 8 11 1 6 . 2 6 28 7 43 45 Peak Tracking Total 40 | . 7 3 . 3 5 5 1 5 . 2 4 9 6 40 13 Tactical Retreats 23 | . 1 . . . 1 5 . 1 . . 1 3 2 2 7 Traps | -11 -10 -10 -10 -9 -8 -7 -6 -6 -5 -5 -5 -4 -3 -3 -2 ------- Run | Jun Mat Min Exi Min Mat Fac Fac DSF Fac Was Fac Fac Res Tes Res Traps Triggered 15 | . . . . . . 3 2 . 2 . 3 . . 2 3 Indirectly . | . . . . . . . . . . . . . . . . Trap Hack Attempts . | . . . . . . . . . . . . . . . . Triggered . | . . . . . . . . . . . . . . . . Disarmed . | . . . . . . . . . . . . . . . . Reprogrammed . | . . . . . . . . . . . . . . . . Reused . | . . . . . . . . . . . . . . . . Traps Extracted . | . . . . . . . . . . . . . . . . Installed . | . . . . . . . . . . . . . . . . Triggered . | . . . . . . . . . . . . . . . . Machines | -11 -10 -10 -10 -9 -8 -7 -6 -6 -5 -5 -5 -4 -3 -3 -2 ---------- Run | Jun Mat Min Exi Min Mat Fac Fac DSF Fac Was Fac Fac Res Tes Res Machines Disabled 5 | . . . . . . . . . . . 1 . . 3 1 Max in Single Turn 1 | . . . . . . . . . . . 1 . . 1 1 Garrison Access 2 | . . . . . . . . . . . . 1 1 . . Machines Repaired . | . . . . . . . . . . . . . . . . Machines Sabotaged . | . . . . . . . . . . . . . . . . Overloaded Fab Kills . | . . . . . . . . . . . . . . . . Hacking | -11 -10 -10 -10 -9 -8 -7 -6 -6 -5 -5 -5 -4 -3 -3 -2 --------- Run | Jun Mat Min Exi Min Mat Fac Fac DSF Fac Was Fac Fac Res Tes Res Machines Accessed 18 | . 2 . 1 . 1 3 1 . 2 . 2 3 2 . 1 Terminals 15 | . 2 . . . 1 3 1 . 2 . 1 3 1 . 1 Fabricators . | . . . . . . . . . . . . . . . . Repair Stations . | . . . . . . . . . . . . . . . . Recycling Units . | . . . . . . . . . . . . . . . . Scanalyzers . | . . . . . . . . . . . . . . . . Garrison Access 2 | . . . . . . . . . . . 1 . 1 . . Total Hacks 47 | . 6 . 1 . 2 7 1 . 5 . 5 11 4 . 5 Successful 12 | . 2 . 1 . . 1 1 . 1 . 1 3 2 . . Failed 35 | . 4 . . . 2 6 . . 4 . 4 8 2 . 5 Catastrophic 9 | . 1 . . . 1 2 . . . . 3 2 . . . Database Lockouts . | . . . . . . . . . . . . . . . . Manual 20 | . 6 . 1 . . 5 . . . . 1 7 . . . Terminals 43 | . 6 . . . 2 7 1 . 5 . 3 11 3 . 5 Fabricators . | . . . . . . . . . . . . . . . . Repair Stations . | . . . . . . . . . . . . . . . . Recycling Units . | . . . . . . . . . . . . . . . . Scanalyzers . | . . . . . . . . . . . . . . . . Garrison Access 3 | . . . . . . . . . . . 2 . 1 . . Terminal Hacks 9 | . 1 . 1 . . 1 1 . 1 . 1 2 1 . . Open DSF 3 | . . . . . . . 1 . 1 . . . 1 . . Level Access Points 1 | . . . . . . 1 . . . . . . . . . Branch Access Points 2 | . 1 . . . . . . . . . 1 . . . . Unreport Threat 1 | . . . . . . . . . . . . 1 . . . Zone Layout 1 | . . . . . . . . . . . . 1 . . . EX-Prototype ID Bank 1 | . . . 1 . . . . . . . . . . . . Fabricator Hacks . | . . . . . . . . . . . . . . . . Repair Station Hacks . | . . . . . . . . . . . . . . . . Recycling Unit Hacks . | . . . . . . . . . . . . . . . . Scanalyzer . | . . . . . . . . . . . . . . . . Garrison Access Hacks 1 | . . . . . . . . . . . . . 1 . . Seal Access 1 | . . . . . . . . . . . . . 1 . . Unauthorized Hacks 2 | . 1 . . . . . . . . . . 1 . . . Terminals 2 | . 1 . . . . . . . . . . 1 . . . Botnet 2 | . 1 . . . . . . . . . . 1 . . . Fabricators . | . . . . . . . . . . . . . . . . Repair Stations . | . . . . . . . . . . . . . . . . Recycling Units . | . . . . . . . . . . . . . . . . Scanalyzers . | . . . . . . . . . . . . . . . . Garrison Access . | . . . . . . . . . . . . . . . . Data Cores Recovered . | . . . . . . . . . . . . . . . . Used . | . . . . . . . . . . . . . . . . Hacking Detections 12 | . 2 . . . 1 2 . . 1 . 2 3 . . 1 Full Trace Events 5 | . 1 . . . 1 1 . . 1 . . . . . 1 Feedback Events . | . . . . . . . . . . . . . . . . Feedback Blocked . | . . . . . . . . . . . . . . . . Robot Schematics Acquired . | . . . . . . . . . . . . . . . . Robots Built . | . . . . . . . . . . . . . . . . Authchips . | . . . . . . . . . . . . . . . . Time . | . . . . . . . . . . . . . . . . Total Robot Build Rating . | . . . . . . . . . . . . . . . . Part Schematics Acquired 1 | . . . . . . . . . . . . . . 1 . Parts Built . | . . . . . . . . . . . . . . . . Authchips . | . . . . . . . . . . . . . . . . Time . | . . . . . . . . . . . . . . . . Total Part Build Rating . | . . . . . . . . . . . . . . . . Parts Repaired . | . . . . . . . . . . . . . . . . Time . | . . . . . . . . . . . . . . . . Parts Recycled . | . . . . . . . . . . . . . . . . Recycled Matter . | . . . . . . . . . . . . . . . . Retrieved Matter . | . . . . . . . . . . . . . . . . Retrieved Components . | . . . . . . . . . . . . . . . . Parts Scanalyzed . | . . . . . . . . . . . . . . . . Part Schematics Acquired . | . . . . . . . . . . . . . . . . Parts Damaged . | . . . . . . . . . . . . . . . . Bothacking | -11 -10 -10 -10 -9 -8 -7 -6 -6 -5 -5 -5 -4 -3 -3 -2 ------------ Run | Jun Mat Min Exi Min Mat Fac Fac DSF Fac Was Fac Fac Res Tes Res Used RIF Installer . | . . . . . . . . . . . . . . . . Robots Hacked . | . . . . . . . . . . . . . . . . Non-combat . | . . . . . . . . . . . . . . . . Combat . | . . . . . . . . . . . . . . . . Robot Hacks Applied . | . . . . . . . . . . . . . . . . Relay Couplers Released 3 | . . . . . . . . . . . . 3 . . . Machine Destruction 3 | . . . . . . . . . . . . 3 . . . Fabnet Peak Effective % . | . . . . . . . . . . . . . . . . Robots Rewired . | . . . . . . . . . . . . . . . . Allies Hacked . | . . . . . . . . . . . . . . . . Hacks Repelled . | . . . . . . . . . . . . . . . . Allies | -11 -10 -10 -10 -9 -8 -7 -6 -6 -5 -5 -5 -4 -3 -3 -2 -------- Run | Jun Mat Min Exi Min Mat Fac Fac DSF Fac Was Fac Fac Res Tes Res Total Allies . | . . . . . . . . . . . . . . . . Largest Group . | . . . . . . . . . . . . . . . . Highest-Rated Group . | . . . . . . . . . . . . . . . . Highest-Rated Ally . | . . . . . . . . . . . . . . . . Total Orders . | . . . . . . . . . . . . . . . . Ally Attacks . | . . . . . . . . . . . . . . . . Total Damage . | . . . . . . . . . . . . . . . . Kills . | . . . . . . . . . . . . . . . . Allies Corrupted . | . . . . . . . . . . . . . . . . Allies Melted . | . . . . . . . . . . . . . . . . Intel | -11 -10 -10 -10 -9 -8 -7 -6 -6 -5 -5 -5 -4 -3 -3 -2 ------- Run | Jun Mat Min Exi Min Mat Fac Fac DSF Fac Was Fac Fac Res Tes Res Robot Analysis Total . | . . . . . . . . . . . . . . . . Derelict Logs Recovered 1 | . . 1 . . . . . . . . . . . . . Drone Launches . | . . . . . . . . . . . . . . . . Drone Recoveries . | . . . . . . . . . . . . . . . . Exploration | -11 -10 -10 -10 -9 -8 -7 -6 -6 -5 -5 -5 -4 -3 -3 -2 ------------- Run | Jun Mat Min Exi Min Mat Fac Fac DSF Fac Was Fac Fac Res Tes Res Turns Passed 2702 | 11 81 56 108 31 113 348 107 74 172 20 140 238 237 130 836 Spaces Moved 5331 | 21 150 109 214 39 189 690 169 61 293 65 314 515 706 323 1473 Core 981 | 21 150 109 214 39 121 239 . 5 . . . . . . 83 Treads . | . . . . . . . . . . . . . . . . Legs . | . . . . . . . . . . . . . . . . Wheels . | . . . . . . . . . . . . . . . . Hover 156 | . . . . . . 153 . 3 . . . . . . . Flight 4194 | . . . . . 68 298 169 53 293 65 314 515 706 323 1390 Fastest Speed 21 | 50 50 50 50 50 35 35 34 35 31 31 31 21 25 25 22 Average Speed 36 | 50 50 50 50 50 48 43 34 45 35 31 31 32 26 27 37 Slowest Speed 122 | 50 50 50 50 50 100 50 35 100 40 31 37 39 31 35 122 Overloaded Moves . | . . . . . . . . . . . . . . . . Propulsion Burnouts . | . . . . . . . . . . . . . . . . Robots Hopped 80 | . . . . . 2 1 . 1 3 . 1 10 21 18 23 Cave-ins Triggered . | . . . . . . . . . . . . . . . . Exploration Rate (%) 30 | 3 50 32 61 12 22 26 8 51 13 75 8 15 24 54 33 Regions Visited 15 Branch Regions 4 Pre-discovered Areas 1 | . . 1 . . . . . . . . . . . . . Known Exits Taken 11 | . 1 1 1 1 1 1 1 . . . 1 1 1 1 . Unknown Exits Taken 1 | 1 . . . . . . . . . . . . . . . Scrap Searched . | . . . . . . . . . . . . . . . . Spaces Dug 46 | . . . . . 1 . 3 . 4 . 1 5 4 2 26 Terrain Destroyed 232 | . . . . . 1 5 3 . 4 . 21 30 4 2 162 Melee 46 | . . . . . 1 . 3 . 4 . 1 5 4 2 26 Projectile 2 | . . . . . . . . . . . . . . . 2 AOE 184 | . . . . . . 5 . . . . 20 25 . . 134 Terrain Rammed . | . . . . . . . . . . . . . . . . Walls Destroyed . | . . . . . . . . . . . . . . . . Machines Disabled . | . . . . . . . . . . . . . . . . Actions | -11 -10 -10 -10 -9 -8 -7 -6 -6 -5 -5 -5 -4 -3 -3 -2 --------- Run | Jun Mat Min Exi Min Mat Fac Fac DSF Fac Was Fac Fac Res Tes Res Total 5876 | 20 154 109 214 50 206 729 211 104 343 64 347 568 728 340 1689 Wait 236 | . . . . 10 9 7 . 27 36 . 16 16 4 4 107 Move 5169 | 20 149 108 213 38 184 687 168 58 287 64 311 494 664 296 1428 Hop 68 | . . . . . 2 1 . 1 3 . 1 10 20 8 22 Pick Up 27 | . 3 1 1 1 1 1 . 2 . . . 4 5 5 3 Fast Attach 53 | . 2 . . . 2 6 2 9 4 . 2 9 4 3 10 Attach 53 | . . . . . 3 3 . 1 . . 1 10 7 5 23 Detach 49 | . . . . . 2 2 . . . . 1 7 8 7 22 Swap 18 | . . . . . . 1 2 . 3 . 2 2 1 2 5 Drop 32 | . . . . 1 1 2 . 6 1 . . 6 5 3 7 Fire 28 | . . . . . . 1 . . . . 3 5 . 1 18 Melee 73 | . . . . . 2 3 3 . 9 . 1 5 10 6 34 Ram 2 | . . . . . . 2 . . . . . . . . . Kick . | . . . . . . . . . . . . . . . . Crush . | . . . . . . . . . . . . . . . . Escape Stasis 68 | . . . . . . 13 36 . . . 9 . . . 10 Rewire . | . . . . . . . . . . . . . . . . Trap . | . . . . . . . . . . . . . . . . Miscellaneous . | . . . . . . . . . . . . . . . . Route ------- -11/Junkyard -10/Materials -10/Mines -10/Exiles (discovered 2 exits: *Min x2) -9/Mines -8/Materials -7/Factory (discovered 7 exits: *Fac x4 / *Sto / *Low x2) -6/Factory -6/DSF -5/Factory -5/Waste -5/Factory (discovered 3 exits: *Fac / Upp x2) -4/Factory -3/Research (discovered 3 exits: *Res / *Arm / *Tes) -3/Testing -2/Research History --------- Turn | Location | Event 3 | -11/Junkyard | Discovered new exit (range 15) 12 | -11/Junkyard | Entered Materials 35 | -10/Materials | Identified exit to Mines 93 | -10/Materials | Entered Mines 100 | -10/Mines | A weapon hastily lodged in a ceiling crevice suddenly fell to the ground 106 | -10/Mines | Met a Derelict bent on vengeance 139 | -10/Mines | Learned location of Zion (-6) 146 | -10/Mines | Deemed a non-threat by the Exiles lab entrance 147 | -10/Mines | Discovered new exit (range 5) 148 | -10/Mines | Identified exit to Exiles 149 | -10/Mines | Entered Exiles 157 | -10/Exiles | Discovered new exit (range 15) 163 | -10/Exiles | Met 8R-AWN 170 | -10/Exiles | Met EX-HEX 184 | -10/Exiles | Met EX-BIN 191 | -10/Exiles | Aligned with FarCom system 192 | -10/Exiles | Given EX-Vault access code 203 | -10/Exiles | Opened EX-Vault 207 | -10/Exiles | Found Longsword +1 218 | -10/Exiles | Warned to stay clear of 0b10 Research branches 234 | -10/Exiles | Met EX-DEC 252 | -10/Exiles | Discovered new exit (range 14) 257 | -10/Exiles | Identified exit to Mines 257 | -10/Exiles | Left Exiles lab with Longsword +1 257 | -10/Exiles | Entered Mines 264 | -9/Mines | Received a Rocket Launcher from a helpful Derelict 283 | -9/Mines | Core integrity fell below 50% 283 | -9/Mines | Discovered new exit (range 12) 288 | -9/Mines | Identified exit to Materials 288 | -9/Mines | Entered Materials 288 | -8/Materials | Evolved 4 slots: Propulsion x2, Utility x2 301 | -8/Materials | Build established: Mutant 396 | -8/Materials | Discovered new exit (range 15) 401 | -8/Materials | Identified exit to Factory 401 | -8/Materials | Entered Factory 401 | -7/Factory | Evolved 2 slots: Propulsion x1, Utility x1 602 | -7/Factory | Discovered new exit (range 17) 611 | -7/Factory | Identified exit to Storage 681 | -7/Factory | Discovered new exit (range 12) 681 | -7/Factory | Discovered new exit (range 19) 684 | -7/Factory | Identified exit to Lower Caves 703 | -7/Factory | Identified exit to Factory 749 | -7/Factory | Entered another Factory area 749 | -6/Factory | Evolved 2 slots: Utility x2 799 | -6/Factory | Build established: Scout 834 | -6/Factory | Spotted B-75 Beast 856 | -6/Factory | Identified exit to DSF 856 | -6/Factory | Entered DSF 870 | -6/DSF | Discovered new exit (range 20) 887 | -6/DSF | Additional patrols routed to DSF 930 | -6/DSF | Identified exit to Factory 930 | -6/DSF | Entered Factory 930 | -5/Factory | Evolved 2 slots: Propulsion x1, Utility x1 1102 | -5/Factory | Manually triggered Chute Trap 1102 | -5/Factory | Sucked down chute 1102 | -5/Factory | Entered Waste 1105 | -5/Waste | Spotted C-40 Crusher 1107 | -5/Waste | Spotted C-40 Crusher 1110 | -5/Waste | Spotted C-40 Crusher 1111 | -5/Waste | Spotted C-40 Crusher 1114 | -5/Waste | Spotted C-40 Crusher 1116 | -5/Waste | Discovered new exit (range 20) 1122 | -5/Waste | Identified exit to Factory 1122 | -5/Waste | Entered Factory 1136 | -5/Factory | Identified exit to Upper Caves 1229 | -5/Factory | Garrison activated, responded to threat 1260 | -5/Factory | Discovered new exit (range 7) 1262 | -5/Factory | Identified exit to Factory 1262 | -5/Factory | Entered another Factory area 1262 | -4/Factory | Evolved 2 slots: Propulsion x1, Utility x1 1276 | -4/Factory | Spotted B-86 Titan 1283 | -4/Factory | Lost 4 parts (2n1u1w) 1415 | -4/Factory | Lost 5 parts (5n) 1486 | -4/Factory | Discovered new exit (range 6) 1496 | -4/Factory | Identified exit to Research 1500 | -4/Factory | Entered Research 1500 | -3/Research | Evolved 2 slots: Propulsion x1, Utility x1 1513 | -3/Research | Identified exit to DSF 1531 | -3/Research | Discovered new exit (range 22) 1538 | -3/Research | Identified exit to Research 1592 | -3/Research | Discovered new exit (range 21) 1597 | -3/Research | Identified exit to Armory 1607 | -3/Research | Build established: Hacker-Scout 1618 | -3/Research | Discovered new exit (range 21) 1623 | -3/Research | Identified exit to Testing 1737 | -3/Research | Entered Testing 1738 | -3/Testing | Maximum security lockdown engaged 1751 | -3/Testing | Found Prototype Energy Gun 1751 | -3/Testing | Identified Warp Gun 1801 | -3/Testing | Found Prototype Ballistic Cannon 1810 | -3/Testing | Spotted Striker 1819 | -3/Testing | Found Prototype Energy Cannon 1819 | -3/Testing | Identified Imp. Potential Cannon 1851 | -3/Testing | Discovered exit to Research (range 8) 1867 | -3/Testing | Entered Research 1867 | -2/Research | Evolved 2 slots: Power x1, Utility x1 1895 | -2/Research | Lost 4 parts (4n) 2134 | -2/Research | Spotted B-90 Cyclops 2157 | -2/Research | First assault squad dispatched 2616 | -2/Research | Spotted B-90 Cyclops 2646 | -2/Research | Core integrity fell below 50% 2657 | -2/Research | System corruption reached 10% 2678 | -2/Research | Core integrity fell below 20% 2701 | -2/Research | Lost 8 parts (1p5n2u) 2703 | -2/Research | Destroyed by G-73 Enforcer with Phase Gun Last Messages --------------- 02644_ Dropped Med. Storage Unit. 02645_ Hacking Suite severed. 02649_ Enh. Optical Array severed. 02653_ R-10 Processor collects Micro-nuke Launcher. 02656_ ALERT: Significant disruption in Zone 1D, multiple assault carriers dispatched. 02659_ Adv. Signal Interpreter severed. 02659_ C-57 Dissector destroyed. 02660_ Acquired 45 matter. 02661_ Acquired Adv. Surge Thruster. 02661_ Adv. Surge Thruster destroyed. 02661_ Potential Refractor disabled. 02663_ Acquired Adv. Surge Thruster. 02667_ Adv. Surge Thruster destroyed. 02675_ Triggered Segregator Trap. 02675_ Arcs of energy rise from the floor. 02675_ Adv. Signal Interpreter blown off. 02680_ System corrupted: Heat flow error (+168). 02695_ :KBJUKDCJ&#UPA>48QIR#J8L8Z U>4BFR/Z 02701_ C-57 Dissector destroyed. Map ----- +----------------------------------------------------+ | ?# #####??????????????????????????????????????? | | ?# # ???? #????????????????????????????????? | | ?# # ! #????????????????????????????????? | | ?# # """ #????????????????????????????????? | | ?# # """" #????????????????????????????????? | | ?# # """" #????????????????????????????????? | | ?# # """ ?????????????????????????????????? | | ?# # ???????????????????????????????????? | | ?# #= ?????????????????????????????????????? | | ?# ###+############# ?????????????????????????? | | ?# ^ ??????????????????????? | | ?# ?????????????????????? | | ?# ?????????????????????? | | ?# g #?????????????????????? | | ?#### T### ###########g #?????????????????????? | | ????####?# #?????????# #?????????????????????? | | ?????????# #?????????# #?????????????????????? | | ?????????# #?????????# #?????????????????????? | | ?????????# #?????????# #?????????????????????? | | ?????????# ########### #?????????????????????? | | ?######??# ## # #?????????????????????? | | ?? ??# ## # #?????????????????????? | | ?? ?# ## """ # #?????????????????????? | | """ ?# ## """ # ###+#######???????????? | | "T" # ## "S pp% w ????????? | | " " # g## """ p# @ ????????? | | + ## "" p # ????????? | | # + p # ????????? | | + ## ###############+##?????????? | | ########?#+############??????????????????????????? | | ?????????????????????????????????????????????????? | | ??????????g??????????????????????????????????????? | | ?????????????????????????????????????????????????? | | ?????????????????????????????????????????????????? | | ?????????????????????????????????????????????????? | | ?????????????????????????????????????????????????? | | ?????????????????????????????????????????????????? | | ?????????????????????????????????????????????????? | | | | | | | | | | | | | | | | | | | | | | | | | +----------------------------------------------------+ Best States ------------- Heat Dissipation 81 Energy Generation 25 Energy Capacity 825 Matter Stores 300 Matter Capacity 300 Sight Range 22 Terrain Scan Range 16 Terrain Scan Density 10 ECM Strength 2 Core Shielding 30 Utility Shielding 66 Evasion (%) 65 Energy Filtering 50 Offensive Hacking 20 Defensive Hacking 10 Item Schematics ----------------- Vibroblade | -3/Testing | Archive Robot Schematics ------------------ None Fabricated ------------ Nothing Alien Tech Used ----------------- None Achievements -------------- None Challenges ------------ None Game ------ Seed SignalIntegrityMace Manual? 0 Play Time 01:05:33 Cumulative 275.3 hours Start 2023.04.21 @ 10:45:00 End 2023.04.21 @ 12:13:04 Sessions 1 Manual Loads 0 Difficulty Rogue Special Mode None Game No. 111 Rogue 95 Adventurer 8 Explorer 8 Win Type - Total 20 Types 12/1/4/1/1/1/0/0/0 Lore% 87 Gallery% 84 Achievement% 75 Wizard Run 0 Options --------- ASCII 1 Keyboard 1 Movement Vi Keybinds 0 Fullscreen 1 Font 18/CogWide Map View 76x50 Tactical HUD 1 Map Filters NONE Filters NONE Steam 0 RUN: f770a0a4-0628-4b15-9021-698197c7cf7a